fUSD/lending_fUSD_20260505
["ID","MTS","AMOUNT","RATE_DAILY","PERIOD"]
[421625280,1777989047000,-2424.24,0.00039687,2]
[421625282,1777989047000,-500.0,0.00039687,2]
[421625291,1777989047000,-1041.07,0.00039687,2]
[421625305,1777989047000,-500.0,0.00039687,2]
[421625289,1777989047000,-601.48982544,0.00039687,2]
[421625290,1777989047000,-439.58017456,0.00039687,2]
[421625288,1777989047000,-1041.07,0.00039687,2]
[421625278,1777989047000,-1748.35649241,0.00039687,2]
[421625284,1777989047000,-500.0,0.00039687,2]
[421625296,1777989047000,-500.0,0.00039687,2]
[421625310,1777989047000,-500.0,0.00039687,2]
[421625298,1777989047000,-500.0,0.00039687,2]
[421625315,1777989047000,-935.43602913,0.00039687,2]
[421625314,1777989047000,-636.7793519,0.00039687,2]
[421625313,1777989047000,-500.0,0.00039687,2]
[421625312,1777989047000,-500.0,0.00039687,2]
[421625311,1777989047000,-500.0,0.00039687,2]
[421625308,1777989047000,-500.0,0.00039687,2]
[421625309,1777989047000,-200.0,0.00039687,30]
[421625295,1777989047000,-500.0,0.00039687,2]
[421625306,1777989047000,-500.0,0.00039687,2]
[421625301,1777989047000,-500.0,0.00039687,2]
[421625302,1777989047000,-500.0,0.00039687,2]
[421625300,1777989047000,-500.0,0.00039687,2]
[421625299,1777989047000,-500.0,0.00039687,2]
[421625303,1777989047000,-500.0,0.00039687,2]
[421625297,1777989047000,-500.0,0.00039687,2]
[421625307,1777989047000,-500.0,0.00039687,2]
[421625316,1777989133000,582.0,0.00024,2]
[421625317,1777989140000,183.29,0.00024658,2]
[421625320,1777989258000,-310.97843141,0.00019872,2]
[421625321,1777989258000,-152.0,0.0002,2]
[421625322,1777989258000,-189.37,0.00020382,2]
[421625323,1777989258000,-765.54,0.00020951,2]
[421625325,1777989258000,-506.0,0.00021,2]
[421625327,1777989258000,-317.53730829,0.00021299,2]
[421625319,1777989258000,-189.37,0.00019363,2]
[421625326,1777989258000,-152.0,0.00021,2]
[421625324,1777989258000,-501.0,0.00021,2]
[421625330,1777989258000,-152.0,0.00022,2]
[421625329,1777989258000,-189.37,0.00021401,2]
[421625332,1777989258000,-659.95,0.00022562,2]
[421625331,1777989258000,-189.37,0.0002242,2]
[421625334,1777989258000,-189.37,0.00023439,2]
[421625333,1777989258000,-167.08825114,0.00023,2]
[421625335,1777989258000,-189.37,0.00024458,2]
[421625336,1777989258000,-150.0,0.00024658,2]
[421625337,1777989258000,-189.37,0.00025477,2]
[421625328,1777989258000,-250.0,0.00021299,2]
[421625338,1777989380000,-150.0,0.00024658,2]
[421625339,1777989445000,-233.31782905,0.000245,2]
[421625340,1777989543000,-501.0,0.00021,2]
[421625341,1777989543000,-150.0,0.00024658,2]
[421625342,1777989566000,-152.0,0.00024126,30]
[421625343,1777989615000,-221.65193759,0.000245,2]
[421625345,1777989699000,-152.0,0.00024561,30]
[421625347,1777989823000,-210.56934071,0.000245,2]
[421625349,1777989908000,156.96,0.00016309,2]
[421625351,1777989933000,-291.0,0.0002589,2]
[421625353,1777989934000,-1002.37,0.00026,2]
[421625352,1777989934000,-500.0,0.0002589,2]
[421625354,1777989934000,-1002.37,0.00026321,2]
[421625355,1777989934000,-189.37,0.00026496,2]
[421625358,1777989934000,-1002.37,0.00026963,2]
[421625359,1777989934000,-1002.37,0.00027284,2]
[421625356,1777989934000,-1002.37,0.00026642,2]
[421625357,1777989934000,-162.51838138,0.00026918,2]
[421625361,1777989934000,-158.57,0.00027536,2]
[421625362,1777989934000,-1200.0,0.00027604,2]
[421625363,1777989934000,-797.32161862,0.00027605,2]
[421625360,1777989934000,-189.37,0.00027515,2]
[421625365,1777989958000,-173.7614615,0.00027605,2]
[421625364,1777989958000,-158.51949403,0.00024,2]
[421625367,1777990025000,-9.56380061,0.000245,2]
[421625366,1777990025000,-200.04087368,0.000245,2]
[421625370,1777990028000,-31.28691988,0.00027605,2]
[421625369,1777990028000,-273.1474,0.0002579,2]
[421625368,1777990028000,-236.43619939,0.000245,2]
[421625371,1777990028000,-1002.37,0.00027926,2]
[421625373,1777990028000,-1002.37,0.00028247,2]
[421625372,1777990028000,-162.51838138,0.00027926,2]
[421625376,1777990028000,-1002.37,0.00028889,2]
[421625378,1777990028000,-3831.83929885,0.00029064,2]
[421625377,1777990028000,-300.0,0.00029063,2]
[421625375,1777990028000,-1002.37,0.00028568,2]
[421625374,1777990028000,-189.37,0.00028535,2]
[421625383,1777990029000,-1002.37,0.00029853,2]
[421625382,1777990029000,-189.37,0.00029554,2]
[421625381,1777990029000,-1002.37,0.00029532,2]
[421625392,1777990029000,-1002.37,0.00030816,30]
[421625379,1777990029000,-4730.16070115,0.00029064,2]
[421625385,1777990029000,-288.5087448,0.0003,120]
[421625380,1777990029000,-1002.37,0.00029211,2]
[421625384,1777990029000,-1680.0,0.00029955,2]
[421625395,1777990029000,-498.04329889,0.0003089,2]
[421625387,1777990029000,-1002.37,0.00030174,30]
[421625388,1777990029000,-1002.37,0.00030495,30]
[421625390,1777990029000,-400.0,0.00030572,2]
[421625391,1777990029000,-189.37,0.00030573,2]
[421625389,1777990029000,-300.0,0.00030572,2]
[421625393,1777990029000,-255.0,0.00030889,2]
[421625394,1777990029000,-450.0,0.0003089,30]
[421625386,1777990029000,-400.0,0.00030173,2]
[421625396,1777990050000,-5447.07044197,0.0003089,2]
[421625397,1777990050000,-522.52087342,0.0003089,2]
[421625398,1777990175000,203.82528974,0.000245,2]
[421625399,1777990211000,155.0,0.0002,2]
[421625400,1777990212000,155.0,0.00021,2]
[421625401,1777990213000,161.0,0.00022,2]
[421625402,1777990218000,2820.83,0.00024,30]
[421625425,1777990233000,-400.0,0.00030889,2]
[421625430,1777990233000,-155.0,0.00031265,30]
[421625421,1777990233000,-402.0,0.00028912,2]
[421625431,1777990233000,-1143.0,0.00031329,3]
[421625429,1777990233000,-9999.99,0.00031264,2]
[421625420,1777990233000,-5699.87601312,0.00028912,2]
[421625418,1777990233000,-1728.70844309,0.00028912,2]
[421625417,1777990233000,-2171.79258427,0.00028912,2]
[421625415,1777990233000,-752.66704909,0.00028911,2]
[421625416,1777990233000,-251.11941752,0.00028912,2]
[421625404,1777990233000,-199.66704909,0.00028911,2]
[421625403,1777990233000,-403.0,0.00028911,2]
[421625422,1777990233000,-162.51838138,0.00030845,2]
[421625428,1777990233000,-1002.37,0.00031137,30]
[421625405,1777990233000,-447.33295091,0.00028911,2]
[421625424,1777990233000,-209.0,0.00030888,2]
[421625426,1777990233000,-5025.47305807,0.0003089,3]
[421625439,1777990233000,-195.85331409,0.00032,120]
[421625440,1777990233000,-9999.99,0.00032,2]
[421625443,1777990233000,-342.98,0.000321,2]
[421625436,1777990233000,-475.59234271,0.000318,2]
[421625442,1777990233000,-150.0,0.00032081,2]
[421625438,1777990233000,-1000.0,0.00031999,2]
[421625435,1777990233000,-475.59234272,0.000318,2]
[421625427,1777990233000,-494.0,0.0003089,2]
[421625434,1777990233000,-1002.37,0.00031779,30]
[421625423,1777990233000,-400.0,0.00030888,2]
[421625437,1777990233000,-475.59234271,0.000318,2]
[421625432,1777990233000,-1002.37,0.00031458,30]
[421625433,1777990233000,-189.37,0.00031592,2]
[421625441,1777990233000,-4024.24,0.00032,2]
[421625490,1777990234000,-31392.15,0.00035189,2]
[421625475,1777990234000,-250.93,0.00034456,2]
[421625478,1777990234000,-1000.0,0.00034837,2]
[421625477,1777990234000,-1266.03,0.00034797,2]
[421625481,1777990234000,-5000.0,0.00035,10]
[421625480,1777990234000,-195.85331409,0.00035,120]
[421625482,1777990234000,-153.89794171,0.0003507,14]
[421625485,1777990234000,-669.48,0.0003517,2]
[421625484,1777990234000,-5000.0,0.00035114,2]
[421625491,1777990234000,-884.8,0.00035195,2]
[421625487,1777990234000,-500.0,0.00035188,7]
[421625473,1777990234000,-8250.2810245,0.00034417,2]
[421625476,1777990234000,-189.37,0.00034649,2]
[421625504,1777990234000,-884.8,0.00036075,2]
[421625489,1777990234000,-151.22798287,0.00035188,7]
[421625486,1777990234000,-500.0,0.00035188,7]
[421625488,1777990234000,-500.0,0.00035188,7]
[421625493,1777990234000,-1587.9698815,0.00035596,2]
[421625503,1777990234000,-150.0,0.00035877,7]
[421625492,1777990234000,-155.0,0.00035265,30]
[421625496,1777990234000,-563.0,0.00035836,2]
[421625499,1777990234000,-150.0,0.00035877,7]
[421625501,1777990234000,-150.0,0.00035877,7]
[421625495,1777990234000,-783.0,0.00035814,2]
[421625500,1777990234000,-150.0,0.00035877,7]
[421625474,1777990234000,-158.57,0.0003442,2]
[421625483,1777990234000,-1054.69,0.00035097,2]
[421625472,1777990234000,-155.0,0.00034265,30]
[421625456,1777990234000,-456.0,0.00033261,3]
[421625471,1777990234000,-387.88424396,0.00034019,2]
[421625444,1777990234000,-1002.37,0.000321,30]
[421625445,1777990234000,-2000.0,0.0003211,30]
[421625446,1777990234000,-188.71,0.00032154,2]
[421625447,1777990234000,-190.76,0.00032204,2]
[421625448,1777990234000,-155.0,0.00032265,30]
[421625453,1777990234000,-195.85331409,0.00033,120]
[421625455,1777990234000,-560.0,0.0003326,2]
[421625454,1777990234000,-12003.28,0.000331,2]
[421625450,1777990234000,-189.08,0.00032345,2]
[421625451,1777990234000,-189.37,0.00032611,2]
[421625502,1777990234000,-150.0,0.00035877,7]
[421625452,1777990234000,-1431.2,0.00032909,2]
[421625449,1777990234000,-188.76,0.00032285,2]
[421625463,1777990234000,-151.0,0.00033363,2]
[421625464,1777990234000,-151.0,0.00033363,2]
[421625465,1777990234000,-241.28038308,0.00033363,2]
[421625467,1777990234000,-36525.92,0.00033501,2]
[421625466,1777990234000,-9851.496458,0.00033442,2]
[421625461,1777990234000,-151.0,0.00033363,2]
[421625459,1777990234000,-151.0,0.00033363,2]
[421625457,1777990234000,-155.0,0.00033265,30]
[421625458,1777990234000,-151.0,0.00033363,2]
[421625462,1777990234000,-151.0,0.00033363,2]
[421625460,1777990234000,-151.0,0.00033363,2]
[421625469,1777990234000,-151.07323797,0.00033753,30]
[421625479,1777990234000,-934.699,0.00034874,40]
[421625470,1777990234000,-195.85331409,0.000339,120]
[421625468,1777990234000,-189.37,0.0003363,2]
[421625497,1777990234000,-166.67,0.00035865,2]
[421625553,1777990234000,-200.0,0.00039368,20]
[421625498,1777990234000,-150.0,0.00035877,7]
[421625534,1777990234000,-1097.0,0.00038564,5]
[421625533,1777990234000,-200.60119232,0.00038496,2]
[421625537,1777990234000,-189.37,0.00038726,2]
[421625535,1777990234000,-500.0,0.000386,5]
[421625538,1777990234000,-500.0,0.00038798,2]
[421625539,1777990234000,-500.0,0.00038798,2]
[421625541,1777990234000,-192.18,0.00038866,30]
[421625540,1777990234000,-325.09545774,0.00038798,2]
[421625545,1777990234000,-381.13,0.000391,120]
[421625556,1777990234000,-7723.54640221,0.000395,2]
[421625555,1777990234000,-32695.05277738,0.000395,2]
[421625544,1777990234000,-309.48193511,0.00038899,2]
[421625494,1777990234000,-189.37,0.00035668,2]
[421625554,1777990234000,-2500.0,0.00039488,2]
[421625552,1777990234000,-1333.33334,0.0003934,112]
[421625550,1777990234000,-1080.95916998,0.00039148,5]
[421625548,1777990234000,-202.707,0.00039119,2]
[421625546,1777990234000,-624.0,0.00039119,2]
[421625547,1777990234000,-1351.0,0.00039119,2]
[421625551,1777990234000,-1333.33333,0.0003929,112]
[421625558,1777990234000,-150.0,0.000395,120]
[421625557,1777990234000,-2666.28938361,0.000395,2]
[421625559,1777990234000,-28621.64645382,0.000395,2]
[421625560,1777990234000,-88668.91921752,0.000395,2]
[421625563,1777990234000,-1623.11679656,0.000395,2]
[421625561,1777990234000,-9683.07919855,0.000395,2]
[421625562,1777990234000,-335.31,0.000395,2]
[421625536,1777990234000,-884.8,0.00038714,2]
[421625531,1777990234000,-6041.0,0.00038363,2]
[421625549,1777990234000,-1266.03,0.00039147,2]
[421625543,1777990234000,-1871.93916517,0.00038899,2]
[421625542,1777990234000,-200.0,0.00038888,2]
[421625505,1777990234000,-155.0,0.00036265,30]
[421625508,1777990234000,-884.8,0.00036955,2]
[421625506,1777990234000,-152.0,0.00036399,3]
[421625509,1777990234000,-200.0,0.00037187,2]
[421625514,1777990234000,-189.37,0.00037706,2]
[421625511,1777990234000,-155.0,0.00037265,30]
[421625517,1777990234000,-1221.0,0.00037724,2]
[421625510,1777990234000,-190.53878735,0.000372,120]
[421625513,1777990234000,-539.0,0.00037542,30]
[421625516,1777990234000,-1267.0,0.00037724,2]
[421625507,1777990234000,-189.37,0.00036687,2]
[421625515,1777990234000,-925.0,0.00037724,2]
[421625512,1777990234000,-849.0,0.00037542,30]
[421625519,1777990234000,-150.0,0.0003787,7]
[421625532,1777990234000,-21227.2096,0.00038427,2]
[421625526,1777990234000,-500.0,0.00038048,21]
[421625528,1777990234000,-707.2905,0.00038346,120]
[421625524,1777990234000,-395.97,0.00038034,30]
[421625518,1777990234000,-884.8,0.00037835,2]
[421625525,1777990234000,-200.0,0.00038037,2]
[421625527,1777990234000,-500.0,0.00038048,21]
[421625530,1777990234000,-3624.0,0.00038363,2]
[421625523,1777990234000,-895.0,0.00038,2]
[421625521,1777990234000,-9851.496458,0.00037972,2]
[421625529,1777990234000,-707.2905,0.00038346,120]
[421625520,1777990234000,-150.0,0.0003787,7]
[421625522,1777990234000,-3498.32077238,0.00038,120]
[421625564,1777990235000,283.26,0.00024658,2]
[421625568,1777990238000,-200.60119232,0.00038496,2]
[421625567,1777990238000,-188.83,0.00032026,2]
[421625570,1777990238000,-1523.03405486,0.000395,2]
[421625569,1777990238000,-753.34940067,0.000395,2]
[421625574,1777990238000,-1101.0,0.000395,2]
[421625572,1777990238000,-325.83621308,0.000395,2]
[421625571,1777990238000,-400.0,0.000395,2]
[421625573,1777990238000,-1503.17647077,0.000395,2]
[421625566,1777990238000,-402.0,0.00028911,2]
[421625637,1777990240000,-2090.40897658,0.000395,2]
[421625636,1777990240000,-21967.26894746,0.000395,2]
[421625635,1777990240000,-605.23004911,0.000395,2]
[421625664,1777990243000,-500.0,0.00039661,2]
[421625662,1777990243000,-1717.17,0.00039661,2]
[421625661,1777990243000,-501.69944493,0.00039661,2]
[421625660,1777990243000,-307.96836633,0.00039646,2]
[421625658,1777990243000,-160.0,0.000396,72]
[421625659,1777990243000,-307.96836633,0.00039609,2]
[421625669,1777990243000,-737.43,0.00039661,2]
[421625649,1777990243000,-707.2905,0.00038346,120]
[421625654,1777990243000,-5000.0,0.00039588,2]
[421625653,1777990243000,-307.96836634,0.00039573,2]
[421625651,1777990243000,-135851.18974282,0.000395,2]
[421625655,1777990243000,-158.0,0.0003959,5]
[421625652,1777990243000,-15963.39306522,0.000395,2]
[421625656,1777990243000,-176.7715329,0.00039591,2]
[421625657,1777990243000,-160.0,0.000396,72]
[421625650,1777990243000,-861.903,0.00038363,2]
[421625666,1777990243000,-532.25,0.00039661,2]
[421625672,1777990243000,-500.0,0.00039661,2]
[421625663,1777990243000,-500.0,0.00039661,2]
[421625665,1777990243000,-894.87,0.00039661,2]
[421625685,1777990243000,-16184.24066084,0.00039662,2]
[421625687,1777990243000,-11322.96478012,0.00039662,2]
[421625686,1777990243000,-28023.74913751,0.00039662,2]
[421625679,1777990243000,-36230.67244376,0.00039662,2]
[421625678,1777990243000,-992.3239787,0.00039662,2]
[421625676,1777990243000,-8326.72,0.00039661,2]
[421625677,1777990243000,-9832.8821074,0.00039662,2]
[421625684,1777990243000,-8.94482826,0.00039662,2]
[421625680,1777990243000,-11679.81651685,0.00039662,2]
[421625675,1777990243000,-482.28196942,0.00039661,2]
[421625671,1777990243000,-500.0,0.00039661,2]
[421625673,1777990243000,-568.99,0.00039661,2]
[421625670,1777990243000,-500.0,0.00039661,2]
[421625668,1777990243000,-500.0,0.00039661,2]
[421625667,1777990243000,-2329.73,0.00039661,2]
[421625674,1777990243000,-500.0,0.00039661,2]
[421625699,1777990246000,-445.88747299,0.00039681,2]
[421625702,1777990246000,-235.22474337,0.00039686,30]
[421625701,1777990246000,-155.90223189,0.00039684,2]
[421625707,1777990246000,-1717.17,0.00039687,2]
[421625704,1777990246000,-200.0,0.00039686,30]
[421625703,1777990246000,-200.0,0.00039686,30]
[421625700,1777990246000,-307.96836633,0.00039682,2]
[421625705,1777990246000,-346.35928332,0.00039686,30]
[421625706,1777990246000,-200.53352621,0.00039687,2]
[421625690,1777990246000,-164.66922633,0.00032,120]
[421625697,1777990246000,-593.93641096,0.00039662,2]
[421625696,1777990246000,-2737.81626115,0.00039662,2]
[421625694,1777990246000,-914.43725429,0.00039581,2]
[421625695,1777990246000,-386.36140092,0.00039581,2]
[421625693,1777990246000,-360.99676413,0.00039662,2]
[421625692,1777990246000,-3735.43107948,0.00039662,2]
[421625691,1777990246000,-164.66922633,0.00033,120]
[421625711,1777990246000,-1717.17,0.00039687,2]
[421625698,1777990246000,-40693.39239364,0.00039662,2]
[421625709,1777990246000,-1717.17,0.00039687,2]
[421625710,1777990246000,-1717.17,0.00039687,2]
[421625708,1777990246000,-1717.17,0.00039687,2]
[421625716,1777990246000,-894.87,0.00039687,2]
[421625726,1777990246000,-500.0,0.00039687,2]
[421625730,1777990246000,-1000.0,0.00039687,2]
[421625725,1777990246000,-500.0,0.00039687,2]
[421625727,1777990246000,-500.0,0.00039687,2]
[421625719,1777990246000,-532.25,0.00039687,2]
[421625733,1777990246000,-1333.33333,0.00039687,116]
[421625724,1777990246000,-500.0,0.00039687,2]
[421625731,1777990246000,-191.09474138,0.00039687,2]
[421625723,1777990246000,-500.0,0.00039687,2]
[421625728,1777990246000,-1000.0,0.00039687,2]
[421625721,1777990246000,-532.25,0.00039687,2]
[421625722,1777990246000,-151.0,0.00039687,2]
[421625718,1777990246000,-532.25,0.00039687,2]
[421625715,1777990246000,-894.87,0.00039687,2]
[421625713,1777990246000,-894.87,0.00039687,2]
[421625717,1777990246000,-532.25,0.00039687,2]
[421625712,1777990246000,-894.87,0.00039687,2]
[421625714,1777990246000,-894.87,0.00039687,2]
[421625720,1777990246000,-532.25,0.00039687,2]
[421625745,1777990247000,-472.76912606,0.00039687,2]
[421625752,1777990247000,-2329.73,0.0003969,2]
[421625747,1777990247000,-2329.73,0.0003969,2]
[421625756,1777990247000,-737.43,0.0003969,2]
[421625750,1777990247000,-2329.73,0.0003969,2]
[421625751,1777990247000,-2329.73,0.0003969,2]
[421625746,1777990247000,-249.0,0.00039688,5]
[421625757,1777990247000,-737.43,0.0003969,2]
[421625738,1777990247000,-500.0,0.00039687,2]
[421625734,1777990247000,-1333.33334,0.00039687,116]
[421625737,1777990247000,-500.0,0.00039687,2]
[421625743,1777990247000,-547.4183876,0.00039687,2]
[421625741,1777990247000,-500.0,0.00039687,2]
[421625736,1777990247000,-1333.33333,0.00039687,116]
[421625739,1777990247000,-500.0,0.00039687,2]
[421625735,1777990247000,-1333.33333,0.00039687,116]
[421625742,1777990247000,-500.0,0.00039687,2]
[421625744,1777990247000,-500.0,0.00039687,2]
[421625749,1777990247000,-2329.73,0.0003969,2]
[421625740,1777990247000,-500.0,0.00039687,2]
[421625754,1777990247000,-737.43,0.0003969,2]
[421625763,1777990247000,-568.99,0.0003969,2]
[421625758,1777990247000,-500.0,0.0003969,2]
[421625778,1777990247000,-4698.81564462,0.00039691,30]
[421625777,1777990247000,-2579.49878305,0.00039691,48]
[421625776,1777990247000,-1625.75436431,0.00039691,48]
[421625772,1777990247000,-8326.72,0.0003969,2]
[421625774,1777990247000,-1347.32730884,0.00039691,48]
[421625775,1777990247000,-368.032845,0.00039691,48]
[421625766,1777990247000,-568.99,0.0003969,2]
[421625765,1777990247000,-568.99,0.0003969,2]
[421625768,1777990247000,-8326.72,0.0003969,2]
[421625773,1777990247000,-200.0,0.00039691,30]
[421625769,1777990247000,-8326.72,0.0003969,2]
[421625762,1777990247000,-500.0,0.0003969,2]
[421625770,1777990247000,-8326.72,0.0003969,2]
[421625759,1777990247000,-500.0,0.0003969,2]
[421625760,1777990247000,-500.0,0.0003969,2]
[421625755,1777990247000,-737.43,0.0003969,2]
[421625761,1777990247000,-500.0,0.0003969,2]
[421625771,1777990247000,-8326.72,0.0003969,2]
[421625764,1777990247000,-568.99,0.0003969,2]
[421625767,1777990247000,-568.99,0.0003969,2]
[421625753,1777990247000,-737.43,0.0003969,2]
[421625779,1777990333000,505.0,0.00024,2]
[421625780,1777990628000,3639.0,0.000255,30]
[421625817,1777990970000,-161.0,0.00024,3]
[421625816,1777990970000,-543.0,0.000225,2]
[421625818,1777990970000,-168.52,0.0002532,2]
[421625815,1777990970000,-168.52,0.00022155,2]
[421625814,1777990970000,-168.52,0.0001899,2]
[421625820,1777991226000,5000.01,0.00015,2]
[421625821,1777991227000,2552.36504526,0.000114,2]
[421625822,1777991229000,-9164.96084271,0.00015,2]
[421625823,1777991240000,-952.86486658,0.00015,2]
[421625824,1777991272000,-5000.0,0.00015,2]
[421625827,1777991275000,-5000.0,0.00015,2]
[421625826,1777991275000,-5000.0,0.00015,2]
[421625825,1777991275000,-5000.0,0.00015,2]
[421625829,1777991276000,-5000.0,0.00015,2]
[421625828,1777991276000,-5000.0,0.00015,2]
[421625831,1777991277000,-5000.0,0.00015,2]
[421625830,1777991277000,-5000.0,0.00015,2]
[421625833,1777991278000,-5000.0,0.00015,2]
[421625832,1777991278000,-5000.0,0.00015,2]
[421625834,1777991279000,-5000.0,0.00015,2]
[421625836,1777991279000,-5000.0,0.00015,2]
[421625835,1777991279000,-5000.0,0.00015,2]
[421625839,1777991280000,-5000.0,0.00015,2]
[421625838,1777991280000,-5000.0,0.00015,2]
[421625837,1777991280000,-5000.0,0.00015,2]
[421625841,1777991281000,-5000.0,0.00015,2]
[421625840,1777991281000,-5000.0,0.00015,2]
[421625842,1777991282000,-5000.0,0.00015,2]
[421625843,1777991288000,-5000.0,0.00015,2]
[421625845,1777991289000,-5000.0,0.00015,2]
[421625844,1777991289000,-5000.0,0.00015,2]
[421625848,1777991290000,-5000.0,0.00015,2]
[421625847,1777991290000,-5000.0,0.00015,2]
[421625846,1777991290000,-5000.0,0.00015,2]
[421625849,1777991291000,-5000.0,0.00015,2]
[421625850,1777991291000,-5000.0,0.00015,2]
[421625851,1777991291000,-5000.0,0.00015,2]
[421625852,1777991292000,-5000.0,0.00015,2]
[421625854,1777991292000,-5000.0,0.00015,2]
[421625853,1777991292000,-5000.0,0.00015,2]
[421625855,1777991293000,-5000.0,0.00015,2]
[421625856,1777991301000,-5000.0,0.00015,2]
[421625858,1777991302000,-5000.0,0.00015,2]
[421625857,1777991302000,-5000.0,0.00015,2]
[421625860,1777991303000,-5000.0,0.00015,2]
[421625859,1777991303000,-5000.0,0.00015,2]
[421625863,1777991304000,-5000.0,0.00015,2]
[421625862,1777991304000,-5000.0,0.00015,2]
[421625861,1777991304000,-5000.0,0.00015,2]
[421625866,1777991305000,-5000.0,0.00015,2]
[421625865,1777991305000,-5000.0,0.00015,2]
[421625864,1777991305000,-5000.0,0.00015,2]
[421625868,1777991306000,-5000.0,0.00015,2]
[421625867,1777991306000,-5000.0,0.00015,2]
[421625869,1777991307000,-5000.0,0.00015,2]
[421625870,1777991307000,-5000.0,0.00015,2]
[421625871,1777991308000,-5000.0,0.00015,2]
[421625873,1777991308000,-5000.0,0.00015,2]
[421625872,1777991308000,-5000.0,0.00015,2]
[421625874,1777991309000,-5000.0,0.00015,2]
[421625875,1777991316000,-5000.0,0.00015,2]
[421625878,1777991317000,-5000.0,0.00015,2]
[421625877,1777991317000,-5000.0,0.00015,2]
[421625876,1777991317000,-5000.0,0.00015,2]
[421625879,1777991318000,-5000.0,0.00015,2]
[421625881,1777991336000,-5000.0,0.00015,2]
[421625880,1777991336000,-5000.0,0.00015,2]
[421625883,1777991337000,-5000.0,0.00015,2]
[421625884,1777991337000,-5000.0,0.00015,2]
[421625882,1777991337000,-5000.0,0.00015,2]
[421625885,1777991339000,-5000.0,0.00015,2]
[421625888,1777991340000,-5000.0,0.00015,2]
[421625887,1777991340000,-5000.0,0.00015,2]
[421625886,1777991340000,-5000.0,0.00015,2]
[421625890,1777991341000,-5000.0,0.00015,2]
[421625889,1777991341000,-5000.0,0.00015,2]
[421625891,1777991342000,-5000.0,0.00015,2]
[421625893,1777991342000,-5000.0,0.00015,2]
[421625892,1777991342000,-5000.0,0.00015,2]
[421625898,1777991347000,-879.00029892,0.00025589,2]
[421625895,1777991347000,-879.00029895,0.000238,2]
[421625896,1777991347000,-3425.15810066,0.000239,2]
[421625894,1777991347000,-40978.71322848,0.00015,2]
[421625897,1777991347000,-162.0,0.00024,3]
[421625899,1777991347000,-3425.15810058,0.00025678,2]
[421625900,1777991347000,-879.00029892,0.00027378,2]
[421625903,1777991347000,-879.00029892,0.00029167,2]
[421625905,1777991347000,-500.0,0.00029232,2]
[421625904,1777991347000,-500.0,0.00029232,2]
[421625902,1777991347000,-168.52,0.00028485,2]
[421625906,1777991347000,-500.68086582,0.00029232,2]
[421625907,1777991347000,-500.0,0.00029232,2]
[421625908,1777991347000,-259.1666019,0.00029232,2]
[421625901,1777991347000,-3425.15810058,0.00027456,2]
[421625913,1777991349000,-500.0,0.00029232,2]
[421625911,1777991349000,-500.0,0.00029232,2]
[421625914,1777991349000,-500.0,0.00029232,2]
[421625909,1777991349000,-240.8333981,0.00029232,2]
[421625910,1777991349000,-500.0,0.00029232,2]
[421625912,1777991349000,-500.0,0.00029232,2]
[421625917,1777991349000,-500.0,0.00029232,2]
[421625916,1777991349000,-500.0,0.00029232,2]